Cogmind - Beta 14 @@@ ROGUE MODE // 2024.08.25 @ 21:33:01 Player: ILikeVoltron Result: Destroyed by 5A-ZJ5(R) with Subdweller Machine Gun Performance ------------- Evolutions (0) 0 Regions Visited (2) 400 Robots Destroyed (26) 130 Value Destroyed (377) 377 Prototype IDs (0) 0 Alien Tech Used (0) 0 Bonus (0) 0 TOTAL SCORE: 907 Bonus ------- None Cogmind --------- Core Integrity 0/250 Matter 297/300 Energy 84/100 System Corruption 0% Temperature Cool (0) Movement Core (250) Ox4 Location -10/Subcaves Parts ------- > --- POWER (1) -------- (None) > --- PROPULSION (2) --- Subdweller Monowheel > --- UTILITY (2) ------ Medium Storage Unit Subdweller Optics > --- WEAPON (2) ------- Light Assault Rifle > --- INVENTORY (10) --- Light Treads Light Treads Wheel Subdweller Optics Improved Terrain Scanner Terrain Scan Processor Seismic Detector Datajack Mining Laser Peak State ------------ > --- POWER ------------ Subdweller Power Source > --- PROPULSION ------- Subdweller Monowheel Subdweller Monowheel > --- UTILITY ---------- Medium Storage Unit Subdweller Optics > --- WEAPON ----------- Assault Rifle Light Assault Rifle > --- INVENTORY -------- Light Treads Light Treads Wheel Compact Wheel Improved Terrain Scanner Terrain Scan Processor Seismic Detector Light Assault Rifle Datajack Mining Laser [Rating: 12] Favorites ----------- Power Ion Engine Engine Ion Engine Propulsion Aluminum Leg Leg Aluminum Leg Wheel Subdweller Monowheel Utility Medium Storage Unit Device Improved Terrain Scanner Storage Medium Storage Unit Protection Weapon Shielding Weapon Light Assault Rifle Energy Gun Small Laser Ballistic Gun Light Assault Rifle Special Weapon Mining Laser Special Melee Weapon Datajack Build | -11 -10 -10 ------- Run | Yrd Mat Sub Slots Evolved . | . . . Power . | . . . Propulsion . | . . . Utility . | . . . Weapon . | . . . Parts Attached 21 | 3 10 8 Power 2 | . 1 1 Engine 2 | . 1 1 Core . | . . . Reactor . | . . . Propulsion 5 | . 3 2 Treads . | . . . Leg 3 | . 3 . Wheel 2 | . . 2 Hover . | . . . Flight . | . . . Utility 6 | 3 1 2 Device 4 | 3 . 1 Storage 1 | . 1 . Processor . | . . . Hackware . | . . . Protection 1 | . . 1 Artifact . | . . . Weapon 8 | . 5 3 Energy Gun 1 | . 1 . Energy Cannon . | . . . Ballistic Gun 5 | . 2 3 Ballistic Cannon . | . . . Launcher . | . . . Special Weapon 1 | . 1 . Impact Weapon . | . . . Slashing Weapon . | . . . Piercing Weapon . | . . . Special Melee Weapon 1 | . 1 . Unidentified Prototypes . | . . . Parts Lost 7 | . . 7 Power 2 | . . 2 Propulsion 3 | . . 3 Utility . | . . . Weapon 2 | . . 2 Highest Loss Streak 4 | . . 4 To Critical Strikes . | . . . Average Slot Usage (%) 98 | . 100 96 Engine 13 | . 14 12 Leg 20 | . 28 6 Wheel 7 | . . 19 Device 13 | . 14 11 Storage 14 | . 14 14 Energy Gun 6 | . 10 . Ballistic Gun 15 | . 12 22 Special Weapon 1 | . 1 2 Special Melee Weapon 3 | . 3 2 Peak Build Rating 12 | 9 10 12 Average Rating 9 | 8 9 10 On Entrance 8 | 6 9 10 Naked Turns . | . . . Heaviest Build 20 | 11 18 20 Greatest Support 40 | 20 20 40 Greatest Overweight (x) 6 | . . 6 Average Overweight (x) . | . . . Largest Inventory Capacity 10 | 8 10 10 Average Capacity 9 | 8 9 10 Most Carried 10 | 8 10 10 Average Carried 9 | 6 9 9 Final Capacity 10 | 8 10 10 Final Carried 10 | 8 10 9 Class Distribution -------------------- 74% | Scavenger-Mutant 25% | Mutant Dominant Class ---------------- Scavenger-Mutant | -10/Materials Scavenger-Mutant | -10/Subcaves Resources | -11 -10 -10 ----------- Run | Yrd Mat Sub Matter Collected 500 | 245 156 99 Remotely . | . . . Salvage Created 810 | 152 586 72 Parts 60 | 11 41 8 Haulers Intercepted 1 | . 1 . Recyclers Shooed 1 | . 1 . Parts Field Recycled . | . . . Retrieved Matter . | . . . Parts Self-Destructed 5 | . . 5 Prevented . | . . . Kills | -11 -10 -10 ------- Run | Yrd Mat Sub Combat Hostiles Destroyed 12 | . 10 2 Guns 12 | . 10 2 Classes Destroyed 10 | 2 7 1 Worker 3 | . 3 . Builder 1 | . 1 . Tunneler 4 | 4 . . Hauler 1 | . 1 . Recycler 3 | 1 2 . Operator 1 | . 1 . Watcher 1 | . 1 . Swarmer 6 | . 6 . Grunt 4 | . 4 . Subdweller 2 | . . 2 Best Kill Streak 4 | 3 4 2 Combat Bots Only 3 | . 3 2 Max Kills in Single Turn 2 | 1 2 1 Gunslinging 1 | . 1 . Exploded . | . . . Melee . | . . . Uniques/NPCs Destroyed . | . . . Combat | -11 -10 -10 -------- Run | Yrd Mat Sub Hostile Shots Fired 102 | . 56 46 Missed 29 | . 20 9 Damage Taken 1150 | . 381 769 Core 257 | . 98 159 Absorbed by Shields . | . . . Redirected to Shielding 48 | . . 48 Core Remaining (%) 100 | 100 . . Volleys Fired 85 | 15 57 13 Largest 2 | 2 2 2 Hottest 100 | 60 100 40 Shots Fired 166 | 30 111 25 Gun 165 | 30 110 25 Cannon . | . . . Launcher . | . . . Special 1 | . 1 . Kinetic 96 | 15 56 25 Thermal 70 | 15 55 . Explosive . | . . . Electromagnetic . | . . . Robot Hit Streak 22 | 20 6 22 Robot Miss Streak 6 | 2 6 2 Penetration Max . | . . . Secondary Targets 1 | . 1 . Max Gunslinging Chain 1 | . 1 . Shots Hit Robots 114 | 25 66 23 Core Hits 46 | 7 34 5 Critical Kills . | . . . Critical Parts Destroyed . | . . . Critical Strikes 1 | . . 1 Destroy 1 | . . 1 Melee Attacks 5 | . 4 1 Impact . | . . . Slashing . | . . . Piercing . | . . . Sneak Attacks 4 | . 4 . Combat Hostiles . | . . . Follow-up Attacks . | . . . Damage Inflicted 1056 | 237 604 215 Guns 1056 | 237 604 215 Cannons . | . . . Explosions . | . . . Melee . | . . . Ramming . | . . . Kinetic 573 | 102 256 215 Thermal 483 | 135 348 . Explosive . | . . . Electromagnetic . | . . . Impact . | . . . Slashing . | . . . Piercing . | . . . Highest Corruption . | . . . Average Corruption . | . . . Corruption Purged . | . . . Corruption Blocked . | . . . Overload Shots . | . . . Overflow Damage . | . . . Projectiles . | . . . Explosions . | . . . Melee . | . . . Knockbacks . | . . . Impact . | . . . Kinetic . | . . . Secondary . | . . . Self-Inflicted Damage . | . . . Shots . | . . . Rammed . | . . . Targets Rammed . | . . . Kicked . | . . . Crushed . | . . . Highest Temperature 82 | 40 82 . Average Temperature 24 | 18 25 . Received Heat Transfer 156 | . 156 . Siege Activations . | . . . Robots Corrupted . | . . . Combat Hostiles . | . . . Parts Fried . | . . . Impact Corruptions . | . . . Robots Melted . | . . . Combat Hostiles . | . . . Parts Melted . | . . . Heat Transferred 1075 | 300 775 . Parts Sabotaged . | . . . Parts Stolen . | . . . Parts Stripped . | . . . Power Chain Reactions . | . . . Alert | -11 -10 -10 ------- Run | Yrd Mat Sub Peak Influence 348 | 25 348 . Initial 16 | . 16 . Average 175 | 13 201 . Maximum Alert Level 1 | . 1 . Low Security (%) 45 | 100 36 . Level 1 54 | . 63 . Level 2 . | . . . Level 3 . | . . . Level 4 . | . . . Level 5 . | . . . High Security . | . . . Max Security . | . . . Squads Dispatched 1 | . 1 . Investigation . | . . . Extermination . | . . . Reinforcement 1 | . 1 . Assault . | . . . Garrison . | . . . Intercept . | . . . Searches Triggered . | . . . Construction Impeded . | . . . Haulers Reinforced . | . . . Active Scanning Responses . | . . . Cargo Convoy Interrupts . | . . . Stealth | -11 -10 -10 --------- Run | Yrd Mat Sub Distress Signals 1 | . 1 . Communications Jammed . | . . . Distress Signals . | . . . Times Spotted 23 | . 17 6 Peak Tracking Total 4 | . 4 3 Tactical Retreats 1 | . 1 . Traps | -11 -10 -10 ------- Run | Yrd Mat Sub Traps Triggered . | . . . Indirectly . | . . . Trap Hack Attempts . | . . . Triggered . | . . . Disarmed . | . . . Reprogrammed . | . . . Reused . | . . . Traps Extracted . | . . . Installed . | . . . Triggered . | . . . Machines | -11 -10 -10 ---------- Run | Yrd Mat Sub Machines Disabled . | . . . Max in Single Turn . | . . . Machines Repaired . | . . . Machines Dismantled . | . . . Machines Sabotaged . | . . . Overloaded Fab Kills . | . . . Hacking | -11 -10 -10 --------- Run | Yrd Mat Sub Machines Accessed 6 | . 6 . Terminals 6 | . 6 . Fabricators . | . . . Repair Stations . | . . . Recycling Units . | . . . Scanalyzers . | . . . Garrison Access . | . . . Total Hacks 9 | . 9 . Successful 6 | . 6 . Failed 3 | . 3 . Catastrophic . | . . . Database Lockouts . | . . . Manual 8 | . 8 . Terminals 9 | . 9 . Fabricators . | . . . Repair Stations . | . . . Recycling Units . | . . . Scanalyzers . | . . . Garrison Access . | . . . Terminal Hacks 1 | . 1 . Zone Layout 1 | . 1 . Fabricator Hacks . | . . . Repair Station Hacks . | . . . Recycling Unit Hacks . | . . . Scanalyzer . | . . . Garrison Access Hacks . | . . . Unauthorized Hacks 5 | . 5 . Terminals 5 | . 5 . Skim 5 | . 5 . Fabricators . | . . . Repair Stations . | . . . Recycling Units . | . . . Scanalyzers . | . . . Garrison Access . | . . . Data Cores Recovered . | . . . Used . | . . . Hacking Detections 2 | . 2 . Full Trace Events . | . . . Feedback Events . | . . . Feedback Blocked . | . . . Robot Schematics Acquired . | . . . Robots Built . | . . . Authchips . | . . . Time . | . . . Total Robot Build Rating . | . . . Part Schematics Acquired . | . . . Parts Built . | . . . Authchips . | . . . Time . | . . . Total Part Build Rating . | . . . Parts Repaired . | . . . Time . | . . . Parts Recycled . | . . . Recycled Matter . | . . . Retrieved Matter . | . . . Retrieved Components . | . . . Parts Scanalyzed . | . . . Part Schematics Acquired . | . . . Parts Damaged . | . . . Bothacking | -11 -10 -10 ------------ Run | Yrd Mat Sub Used RIF Installer . | . . . Robots Hacked 3 | . 2 1 Non-combat 2 | . 2 . Combat 1 | . . 1 Robot Hacks Applied 4 | . 3 1 parse_system 2 | . 1 1 no_distress 2 | . 2 . Relay Couplers Released . | . . . Fabnet Peak Effective % . | . . . Robots Rewired . | . . . Allies Hacked . | . . . Hacks Repelled . | . . . Allies | -11 -10 -10 -------- Run | Yrd Mat Sub Total Allies . | . . . Largest Group . | . . . Highest-Rated Group . | . . . Highest-Rated Ally . | . . . Total Orders . | . . . Ally Attacks . | . . . Total Damage . | . . . Kills . | . . . Allies Corrupted . | . . . Allies Melted . | . . . Intel | -11 -10 -10 ------- Run | Yrd Mat Sub Robot Analysis Total . | . . . Derelict Logs Recovered . | . . . Drone Launches . | . . . Drone Recoveries . | . . . Exploration | -11 -10 -10 ------------- Run | Yrd Mat Sub Turns Passed 1169 | 109 683 377 Spaces Moved 730 | 32 411 287 Core 2 | . . 2 Treads . | . . . Legs 496 | 32 411 53 Wheels 232 | . . 232 Hover . | . . . Flight . | . . . Fastest Speed 110 | 120 120 110 Average Speed 117 | 120 120 113 Slowest Speed 350 | 120 120 350 Overloaded Moves . | . . . Propulsion Burnouts . | . . . Robots Hopped . | . . . Cave-ins Triggered . | . . . Exploration Rate (%) 24 | 4 54 15 Regions Visited 2 Branch Regions 1 Pre-discovered Areas . | . . . Known Exits Taken 1 | . 1 . Unknown Exits Taken 1 | 1 . . Scrap Searched . | . . . Spaces Dug 1 | . 1 . Terrain Destroyed 1 | . 1 . Melee . | . . . Projectile 1 | . 1 . AOE . | . . . Terrain Rammed . | . . . Walls Destroyed . | . . . Machines Disabled . | . . . Actions | -11 -10 -10 --------- Run | Yrd Mat Sub Total 889 | 74 500 315 Wait 30 | 23 7 . Move 728 | 31 410 287 Hop . | . . . Pick Up 6 | 2 3 1 Fast Attach 6 | 1 1 4 Attach 2 | . 1 1 Detach . | . . . Swap 13 | 2 8 3 Drop 11 | . 9 2 Fire 85 | 15 57 13 Melee 5 | . 4 1 Ram . | . . . Kick . | . . . Crush . | . . . Escape Stasis . | . . . Rewire 3 | . . 3 Trap . | . . . Miscellaneous . | . . . Route ------- -11/Scrapyard -10/Materials (discovered 3 exits: *Mat / [*Min] / *Sub) -10/Subcaves History --------- Turn | Location | Event 18 | -11/Scrapyard | Discovered new exit (range 2) 110 | -11/Scrapyard | Entered Materials 371 | -10/Materials | Discovered new exit (range 16) 435 | -10/Materials | Discovered new exit (range 11) 541 | -10/Materials | Identified exit to Materials 583 | -10/Materials | Build established: Scavenger-Mutant 727 | -10/Materials | Learned 2 Mines zone layouts 770 | -10/Materials | Identified exit to Subcaves 793 | -10/Materials | Entered Subcaves 871 | -10/Subcaves | Core integrity fell below 50% 916 | -10/Subcaves | Lost 3 parts (1p2n) 1153 | -10/Subcaves | A Subdweller sparked back to life 1153 | -10/Subcaves | A Subdweller sparked back to life 1167 | -10/Subcaves | Core integrity fell below 20% 1170 | -10/Subcaves | Destroyed by 5A-ZJ5(R) with Subdweller Machine Gun Last Messages --------------- 00913_ Subatomizers dissect the Sub. Optics. 00914_ Dropped Weapon Shielding. 00918_ Acquired Sub. Optics. 00920_ Acquired 20 matter. 00921_ Dropped Com. Wheel. 00923_ Acquired Sub. Optics. 00926_ Subatomizers dissect the Disposable Heat Sink. 01116_ Attempting to rewire S7-ZI6(R). 01116_ S7-ZI6(R) is broken beyond repair. 01117_ Attempting to rewire BD-9WG(R). 01117_ BD-9WG(R) is broken beyond repair. 01118_ Attempting to rewire 5A-ZJ5(R). 01118_ 5A-ZJ5(R) is broken beyond repair. 01137_ Sub. Monowheel shoots sparks and powers down. 01153_ BD-9WG(R) creaks and sparks as it begins to move. 01153_ S7-ZI6(R) creaks and sparks as it begins to move. 01155_ Assault Rifle destroyed. 01162_ Sub. Power Source destroyed. 01168_ Sub. Monowheel destroyed. 01170_ Lgt. Assault Rifle destroyed. Map ----- +----------------------------------------------------+ | ?????????????????????????????????????????????? | | ?????????????????????????????????????????????? | | ?????????????????????????????????????????????? | | ?????????????????????????????????????????????? | | ?????????????????????????????????????????????? | | ?????????????????????????????????????????????? | | ?????????????????????????????????????????????? | | ?????????????????????????????????????????????? | | ?????????????????????????????????????????????? | | ?????????????????????????????????????????????? | | ?????????????????????????????????????????????? | | ?????????????????????????????????????????????? | | ?????????????????????????????????????????????? | | ?????????????????????????????????????????????? | | ?????????????????????????????????????????????? | | ??????????????????#####??????????????????????? | | ??????????????????# ""##?????????????????????? | | ?????????????????## """## #????????????????? | | ?????????????????# """"" #????????????????? | | ?????????????????# ""##" #????????????????? | | ?????????????????## ##? ?????????????????? | | ??????????????????# #?????????????????????? | | ??????????????????# #?????????????????????? | | ??????????????????# ##????????????????????? | | ??????????????????# #????????????????????? | | ??????????????????## @ ##????????????????????? | | ???????????????????#RRR#?????????????????????? | | ??????????????????## ###"???????????????????? | | ??????????????????# #& #???????????????????? | | ??????????????????# < "##??????????????????? | | ??????????????????#" #??????????????????? | | ??????????????????# < #??????????????????? | | ?????????????????##" #??????????????????? | | ?????????????????# #??????????????????? | | ?????????????????# ## ##??????????????????? | | ????????????????## # ##??????????????????? | | ???????????????## ## #??????????????????? | | ??????????????## ##??????????????????? | | ??????????????# #??????????????????? | | ??????????????# #####??????????????????? | | ??????????????## ##??????????????????????? | | ???????????????### ##?????????????????????? | | ??????????#??????# ##????????????????????? | | ????????????????## #????????????????????? | | ????????????????# #????????????????????? | | ????????????????# ##???#????????????????? | | ????????????????# ####??????????????????? | | ???????????????## #?????????#???#????? | | ???????????????# #?????????????# ?? | | ???????????????# ##?????????????? ? | +----------------------------------------------------+ Best States ------------- Heat Dissipation 25 Energy Generation 15 Energy Capacity 250 Matter Stores 300 Matter Capacity 300 Sight Range 21 Terrain Scan Range 16 Terrain Scan Density 10 Weapon Shielding 33 Evasion (%) 55 Item Schematics ----------------- None Robot Schematics ------------------ None Fabricated ------------ Nothing Alien Tech Used ----------------- None Achievements -------------- None Challenges ------------ None Game ------ Seed SurgeWeightMegatreads Manual? 0 Play Time 00:14:48 Cumulative 155.7 hours Start 2024.08.25 @ 21:20:24 End 2024.08.25 @ 21:33:01 Sessions 1 Manual Loads 0 Difficulty Rogue Special Mode None Game No. 277 Rogue 273 Adventurer 0 Explorer 4 Win Type - Total 0 Types 0/0/0/0/0/0/0/0/0 Lore% 19 Gallery% 46 Achievement% 34 Wizard Run 0 Options --------- Layout 1 ASCII 0 Keyboard 1 Movement Arrows Keybinds 0 Fullscreen 1 Font 32/Proggy Map View 130x35 Zoom Use 4% Tactical HUD 1 Map Filters NONE Filters NONE Steam 0 RUN: 9f9439e8-0429-443e-9636-98e97a89bb14